[Event "Elegant 1st Division League 2024"]
[Site "Dhaka"]
[Date "2024.07.14"]
[Round "4.3"]
[White "Shourya Paul"]
[Black "S M Sharon"]
[Result "1-0"]
[Annotator "ChessBase"]
[ECO "C41"]
[WhiteElo "1813"]
[BlackElo "2047"]
[PlyCount "101"]
[EventDate "2024.07.10"]
[EventType "team-tourn"]
[EventCountry "BAN"]
[SourceTitle "playchess.com"]
[Source "ChessBase"]
[SourceQuality "1"]
[TimeControl "5400+30"]

1. e4 {[%emt 0:00:03]} d6 {[%emt 0:16:27]} 2. d4 {[%emt 0:00:43]} Nd7 {[%emt 0:01:10]} 3. Nc3 {[%emt 0:00:57]} e5 {[%emt 0:00:42]} 4. Nf3 {[%emt 0:00:32]} c6 {[%emt 0:00:40]} 5. Bc4 {[%emt 0:01:06]} Ngf6 {[%emt 0:01:44]} 6. dxe5 {[%emt 0:01:24]} Nxe5 {[%emt 0:02:51]} 7. Nxe5 {[%emt 0:01:00]} dxe5 {[%emt 0:00:02]} 8. Bxf7+ {[%emt 0:01:06]} Ke7 {[%emt 0:00:04]} 9. Qxd8+ {[%emt 0:00:18]} Kxd8 {[%emt 0:00:06]} 10. f3 {[%emt 0:01:23]} Ke7 {[%emt 0:01:45]} 11. Bb3 {[%emt 0:00:21]} Be6 {[%emt 0:00:02]} 12. Be3 {[%emt 0:00:33]} Bxb3 {[%emt 0:00:22]} 13. axb3 {[%emt 0:00:12]} a6 {[%emt 0:00:23]} 14. O-O-O {[%emt 0:07:27]} Ke6 {[%emt 0:00:24]} 15. Rd2 {[%emt 0:15:16]} b5 {[%emt 0:02:19]} 16. Rhd1 {[%emt 0:01:28]} Be7 {[%emt 0:00:20]} 17. Bg5 {[%emt 0:06:16]} Rad8 {[%emt 0:03:32]} 18. Rxd8 {[%emt 0:00:49]} Rxd8 {[%emt 0:00:04]} 19. Rxd8 {[%emt 0:00:34]} Bxd8 {[%emt 0:00:01]} 20. Bxf6 {[%emt 0:00:24]} Bxf6 {[%emt 0:01:17]} 21. b4 {[%emt 0:05:06]} Bg5+ {[%emt 0:02:26]} 22. Kd1 {[%emt 0:00:20]} Bf4 {[%emt 0:01:37]} 23. Ne2 {[%emt 0:01:33]} Bg5 {[%emt 0:04:26]} 24. Nc1 {[%emt 0:02:31]} Be3 {[%emt 0:10:30]} 25. Nd3 {[%emt 0:02:19]} Kd6 {[%emt 0:08:38]} 26. Ke2 {[%emt 0:02:32]} Bd4 {[%emt 0:00:50]} 27. c3 {[%emt 0:47:47]} Bg1 {[%emt 0:03:24]} 28. g3 {[%emt 0:00:00]} g5 {[%emt 0:01:46]} 29. h3 {[%emt 0:00:00]} Bb6 {[%emt 0:03:50]} 30. f4 {[%emt 0:00:00]} gxf4 {[%emt 0:00:50]} 31. gxf4 {[%emt 0:00:00]} exf4 {[%emt 0:00:46]} 32. Kf3 {[%emt 0:00:00]} Be3 {[%emt 0:08:09]} 33. Nxf4 {[%emt 0:00:00]} Bc1 {[%emt 0:04:01]} 34. e5+ {[%emt 0:00:00]} Ke7 {[%emt 0:01:17]} 35. Nd3 {[%emt 0:00:00]} Bh6 {[%emt 0:01:02]} 36. Ke4 {[%emt 0:00:00]} Bd2 {[%emt 0:00:32]} 37. Nc5 {[%emt 0:00:00]} Bc1 {[%emt 0:00:15]} 38. b3 {[%emt 0:00:00]} Bd2 {[%emt 0:00:30]} 39. Nxa6 {[%emt 0:00:00]} Kd7 {[%emt 0:02:40]} 40. c4 {[%emt 0:00:00]} Bc3 {[%emt 0:02:34]} 41. cxb5 {[%emt 0:00:00]} cxb5 {[%emt 0:00:11]} 42. Kd5 {[%emt 0:00:00]} h5 {[%emt 0:02:44]} 43. Nc5+ {[%emt 0:00:00]} Ke7 {[%emt 0:00:33]} 44. Nd3 {[%emt 0:00:00]} h4 {[%emt 0:00:27]} 45. e6 {[%emt 0:00:00]} Bd2 {[%emt 0:03:14]} 46. Ne5 {[%emt 0:00:00]} Be1 {[%emt 0:00:29]} 47. Nc6+ {[%emt 0:00:00]} Kf8 {[%emt 0:02:04]} 48. Kc5 {[%emt 0:00:00]} Kg7 {[%emt 0:00:40]} 49. Kxb5 {[%emt 0:00:00]} Kf6 {[%emt 0:02:25]} 50. e7 {[%emt 0:00:00]} Kf7 {[%emt 0:03:08]} 51. Kc5 {[%emt 0:00:00]} 1-0

[Event "Elegant 1st Division League 2024"]
[Site "Dhaka"]
[Date "2024.07.14"]
[Round "4.4"]
[White "Sacchu, Afzal Hossain"]
[Black "Shankhodip De"]
[Result "0-1"]
[Annotator "ChessBase"]
[ECO "E62"]
[WhiteElo "1981"]
[BlackElo "1942"]
[PlyCount "94"]
[EventDate "2024.07.10"]
[EventType "team-tourn"]
[EventCountry "BAN"]
[SourceTitle "playchess.com"]
[Source "ChessBase"]
[SourceQuality "1"]
[TimeControl "5400+30"]

1. c4 {[%emt 0:00:05]} Nf6 {[%emt 0:00:26]} 2. Nc3 {[%emt 0:00:11]} g6 {[%emt 0:00:06]} 3. g3 {[%emt 0:00:24]} Bg7 {[%emt 0:00:08]} 4. Bg2 {[%emt 0:00:19]} O-O {[%emt 0:00:12]} 5. Nf3 {[%emt 0:00:14]} d6 {[%emt 0:01:04]} 6. O-O {[%emt 0:00:13]} c6 {[%emt 0:00:51]} 7. d4 {[%emt 0:02:02]} Bf5 {[%emt 0:00:07]} 8. Nh4 {[%emt 0:01:35]} Be6 {[%emt 0:00:09]} 9. Qd3 {[%emt 0:01:37]} d5 {[%emt 0:05:42]} 10. b3 {[%emt 0:02:09]} Na6 {[%emt 0:13:12]} 11. a3 {[%emt 0:00:30]} c5 {[%emt 0:00:48]} 12. cxd5 {[%emt 0:09:46]} Nxd5 {[%emt 0:01:19]} 13. Nxd5 {[%emt 0:00:40]} Bxd5 {[%emt 0:00:04]} 14. e4 {[%emt 0:01:33]} Bc6 {[%emt 0:00:50]} 15. Bb2 {[%emt 0:01:38]} cxd4 {[%emt 0:01:25]} 16. b4 {[%emt 0:00:22]} Qd7 {[%emt 0:00:39]} 17. Rfd1 {[%emt 0:02:30]} e5 {[%emt 0:03:31]} 18. Bf1 {[%emt 0:00:59]} Nc7 {[%emt 0:00:52]} 19. f4 {[%emt 0:00:44]} exf4 {[%emt 0:13:04]} 20. gxf4 {[%emt 0:03:15]} Qe7 {[%emt 0:00:27]} 21. Qg3 {[%emt 0:01:06]} Qxe4 {[%emt 0:16:50]} 22. Bg2 {[%emt 0:00:54]} Qe3+ {[%emt 0:02:06]} 23. Qxe3 {[%emt 0:00:19]} dxe3 {[%emt 0:00:01]} 24. Bxg7 {[%emt 0:00:27]} Kxg7 {[%emt 0:00:01]} 25. Bxc6 {[%emt 0:00:20]} bxc6 {[%emt 0:00:03]} 26. Rac1 {[%emt 0:00:32]} Nd5 {[%emt 0:02:46]} 27. Ng2 {[%emt 0:04:09]} Rac8 {[%emt 0:01:09]} 28. Kf1 {[%emt 0:01:24]} a6 {[%emt 0:01:49]} 29. Rc5 {[%emt 0:00:25]} f5 {[%emt 0:01:47]} 30. Rdc1 {[%emt 0:00:51]} g5 {[%emt 0:00:12]} 31. Rxc6 {[%emt 0:01:23]} Rce8 {[%emt 0:02:47]} 32. Ke2 {[%emt 0:01:20]} Nxf4+ {[%emt 0:00:35]} 33. Nxf4 {[%emt 0:00:29]} gxf4 {[%emt 0:00:01]} 34. Rxa6 {[%emt 0:00:27]} Kh8 {[%emt 0:00:58]} 35. Rf1 {[%emt 0:03:16]} Rg8 {[%emt 0:00:18]} 36. Rf6 {[%emt 0:01:24]} Rg2+ {[%emt 0:00:22]} 37. Kf3 {[%emt 0:00:05]} Rxh2 {[%emt 0:05:48]} 38. Rxf5 {[%emt 0:01:53]} Rd8 {[%emt 0:06:19]} 39. Rxf4 {[%emt 0:01:51]} e2 {[%emt 0:00:03]} 40. Rc1 {[%emt 0:02:05]} Rd3+ {[%emt 0:10:26]} 41. Kg4 {[%emt 0:03:23]} Rg2+ {[%emt 0:00:50]} 42. Kf5 {[%emt 0:04:56]} Rd1 {[%emt 0:01:36]} 43. Rc2 {[%emt 0:02:38]} Rd5+ {[%emt 0:01:20]} 44. Kf6 {[%emt 0:01:41]} Rg6+ {[%emt 0:00:05]} 45. Kf7 {[%emt 0:00:26]} Rd7+ {[%emt 0:00:04]} 46. Ke8 {[%emt 0:00:13]} e1=Q+ {[%emt 0:00:08]} 47. Kxd7 {[%emt 0:00:17]} Qd1+ {[%emt 0:00:03]} 0-1

[Event "Elegant 1st Division League 2024"]
[Site "Dhaka"]
[Date "2024.07.14"]
[Round "4.5"]
[White "Hossain, Monir"]
[Black "Islam, Sheik   Khairul"]
[Result "1/2-1/2"]
[Annotator "NA"]
[ECO "D30"]
[WhiteElo "1972"]
[BlackElo "1948"]
[PlyCount "63"]
[EventDate "2024.07.10"]
[EventType "team-tourn"]
[EventCountry "BAN"]
[SourceTitle "playchess.com"]
[Source "ChessBase"]
[SourceQuality "1"]
[TimeControl "5400+30"]

1. d4 {[%emt 0:17:49]} c6 {[%emt 0:00:32]} 2. c4 {[%emt 0:00:24]} d5 {[%emt 0:00:08]} 3. Nf3 {[%emt 0:01:02]} e6 {[%emt 0:00:17]} 4. Nbd2 {[%emt 0:01:05]} f5 {[%emt 0:01:34]} 5. Qc2 {[%emt 0:00:45]} Nf6 {[%emt 0:00:24]} 6. h3 {[%emt 0:05:10] D30: Damengambit (ohne Sc3).} Na6 {[%emt 0:00:13]} 7. a3 {[%emt 0:00:26]} Be7 {[%emt 0:00:19]} 8. e3 {[%emt 0:00:42]} Nc7 {[%emt 0:00:16]} 9. g4 {[%emt 0:00:13]} Ne4 {[%emt 0:01:53]} 10. gxf5 {[%emt 0:03:32]} exf5 {[%emt 0:03:14]} 11. h4 {[%emt 0:00:57]} Be6 {[%emt 0:00:27]} 12. h5 {[%emt 0:01:51]} Bf6 {[%emt 0:02:58]} 13. c5 {[%emt 0:01:19]} Qe7 {[%emt 0:00:59]} 14. Bd3 {[%emt 0:02:57]} O-O {[%emt 0:08:53]} 15. Kf1 {[%emt 0:04:17]} Rae8 {[%emt 0:01:27]} 16. Nb3 {[%emt 0:02:08]} Bc8 {[%emt 0:01:04]} 17. Bd2 {[%emt 0:04:49]} Ne6 {[%emt 0:00:20]} 18. Re1 {[%emt 0:03:28]} Kh8 {[%emt 0:00:55]} 19. Bc1 {[%emt 0:01:15]} Nd8 {[%emt 0:01:13]} 20. Rh2 {[%emt 0:02:53]} Nf7 {[%emt 0:00:04]} 21. Re2 {[%emt 0:03:06]} Nh6 {[%emt 0:00:11]} 22. Ng1 {[%emt 0:01:51]} Qc7 {[%emt 0:00:38]} 23. Rg2 {[%emt 0:02:58]} Bd8 {[%emt 0:01:33]} 24. Qd1 {[%emt 0:00:55]} Qf7 {[%emt 0:00:28]} 25. Rc2 {[%emt 0:01:32]} Bc7 {[%emt 0:01:23]} 26. Nh3 {[%emt 0:05:17]} Nf6 {[%emt 0:01:48]} 27. Be2 {[%emt 0:08:25]} Nfg4 {[%emt 0:00:02]} 28. Nf4 {[%emt 0:02:54]} Bxf4 {[%emt 0:08:53]} 29. exf4 {[%emt 0:01:25]} Qxh5 {[%emt 0:00:32]} 30. Kg1 {[%emt 0:00:25]} Qh3 {[%emt 0:00:39]} 31. Rc3 {[%emt 0:00:53]} Qh5 {[%emt 0:02:16]} 32. Nd2 $17 {[%emt 0:00:19]} 1/2-1/2

[Event "Elegant 1st Division League 2024"]
[Site "Dhaka"]
[Date "2024.07.14"]
[Round "4.6"]
[White "Faisal, Hossain"]
[Black "Hossain, Alamgir"]
[Result "1/2-1/2"]
[Annotator "NA"]
[ECO "B00"]
[WhiteElo "1872"]
[BlackElo "1974"]
[PlyCount "49"]
[EventDate "2024.07.10"]
[EventType "team-tourn"]
[EventCountry "BAN"]
[SourceTitle "playchess.com"]
[Source "ChessBase"]
[SourceQuality "1"]
[TimeControl "5400+30"]

1. e4 {[%emt 0:00:30]} Nc6 {[%emt 0:00:04]} 2. d4 {[%emt 0:01:31]} e5 {[%emt 0:00:15]} 3. d5 {[%emt 0:00:15]} Nce7 {[%emt 0:00:15]} 4. g3 {[%emt 0:01:12]} d6 {[%emt 0:00:19]} 5. c4 {[%emt 0:00:42]} f5 {[%emt 0:00:29]} 6. Nc3 {[%emt 0:00:55] B00: Queen's Fianchetto Defence, Nimzowitsch Defence.} fxe4 {[%emt 0:01:02]} 7. Nxe4 {[%emt 0:00:09]} Nf6 {[%emt 0:01:20]} 8. Bd3 {[%emt 0:01:49]} Nxe4 {[%emt 0:07:37]} 9. Bxe4 {[%emt 0:00:01]} Nf5 {[%emt 0:02:28]} 10. Ne2 {[%emt 0:00:34]} Be7 {[%emt 0:01:35]} 11. Qd3 {[%emt 0:03:18]} g6 {[%emt 0:01:37]} 12. Bd2 {[%emt 0:00:45]} Ng7 {[%emt 0:09:57]} 13. O-O-O {[%emt 0:03:58]} Bf5 {[%emt 0:02:28]} 14. f3 {[%emt 0:00:37]} Bxe4 {[%emt 0:01:18]} 15. fxe4 {[%emt 0:00:33]} Bg5 {[%emt 0:00:51]} 16. Rdf1 {[%emt 0:00:37]} Qe7 {[%emt 0:01:07]} 17. Kb1 {[%emt 0:00:24]} Rf8 {[%emt 0:01:49]} ({Black should try} 17... Bxd2 $14 18. Qxd2 c5) 18. Rxf8+ {[%emt 0:04:44]} Kxf8 {[%emt 0:00:02]} 19. Rf1+ {[%emt 0:00:29]} Kg8 {[%emt 0:00:01]} 20. Bxg5 {[%emt 0:00:29]} Qxg5 {[%emt 0:00:02]} 21. Qf3 {[%emt 0:00:09]} Qe7 {[%emt 0:00:24]} 22. Nc3 {[%emt 0:00:23]} a6 {[%emt 0:00:21]} 23. Kc2 {[%emt 0:00:54]} Rf8 {[%emt 0:00:11]} 24. Qxf8+ {[%emt 0:00:15]} Qxf8 {[%emt 0:00:02]} 25. Rxf8+ $16 {[%emt 0:00:09]} 1/2-1/2

[Event "Elegant 1st Division League 2024"]
[Site "Dhaka"]
[Date "2024.07.14"]
[Round "4.7"]
[White "Priyanshu Barua"]
[Black "Asaduzzaman, Ahad"]
[Result "1-0"]
[Annotator "NA"]
[ECO "B00"]
[WhiteElo "1987"]
[BlackElo "1855"]
[PlyCount "109"]
[EventDate "2024.07.10"]
[EventType "team-tourn"]
[EventCountry "BAN"]
[SourceTitle "playchess.com"]
[Source "ChessBase"]
[SourceQuality "1"]
[TimeControl "5400+30"]

1. e4 {[%emt 0:06:29]} b6 {[%emt 0:03:43]} 2. Nc3 {[%emt 0:04:20]} Bb7 {[%emt 0:00:14]} 3. d4 {[%emt 0:02:12]} Nf6 {[%emt 0:01:12]} 4. f3 {[%emt 0:01:19]} e6 {[%emt 0:02:00]} 5. Be3 {[%emt 0:01:22]} Be7 {[%emt 0:00:28]} 6. Bd3 {[%emt 0:00:22] B00: Queen's Fianchetto Defence, Nimzowitsch Defence.} Nc6 {[%emt 0:01:21]} 7. a3 {[%emt 0:01:17]} e5 {[%emt 0:02:13]} 8. d5 {[%emt 0:03:37]} Nb8 {[%emt 0:01:35]} 9. f4 {[%emt 0:01:10]} ({White should play} 9. Nge2 $16) 9... d6 {[%emt 0:00:45]} 10. Nh3 {[%emt 0:03:18]} h5 {[%emt 0:03:19]} 11. Nf2 {[%emt 0:12:22]} Nbd7 {[%emt 0:00:39]} 12. f5 {[%emt 0:01:22]} a6 {[%emt 0:01:01]} 13. Qe2 {[%emt 0:02:04]} Nc5 {[%emt 0:01:21]} 14. Bxc5 {[%emt 0:01:50]} dxc5 {[%emt 0:00:04]} 15. a4 {[%emt 0:00:31]} Bd6 {[%emt 0:00:51]} 16. O-O-O {[%emt 0:00:07]} Qe7 {[%emt 0:00:58]} 17. g3 {[%emt 0:00:50]} Kd7 {[%emt 0:04:58]} 18. h3 {[%emt 0:00:25]} Kc8 {[%emt 0:03:26]} 19. Nb1 {[%emt 0:05:32]} Kb8 {[%emt 0:01:19]} 20. c3 {[%emt 0:00:32]} Ka7 {[%emt 0:00:33]} 21. Kc2 {[%emt 0:00:08]} Qd7 {[%emt 0:02:08]} 22. b3 {[%emt 0:00:16]} Rac8 {[%emt 0:01:12]} 23. Nd2 {[%emt 0:00:36]} c6 {[%emt 0:17:01]} 24. dxc6 {[%emt 0:00:52]} Qxc6 {[%emt 0:00:17]} 25. Nc4 {[%emt 0:05:06]} Bc7 {[%emt 0:00:40]} 26. Rd2 {[%emt 0:03:27]} Rcd8 {[%emt 0:00:27]} 27. Rhd1 {[%emt 0:00:35]} Rd7 {[%emt 0:00:41]} 28. Ne3 {[%emt 0:00:42]} Rhd8 {[%emt 0:04:12]} 29. g4 {[%emt 0:06:00]} hxg4 {[%emt 0:17:09]} 30. hxg4 {[%emt 0:00:55]} Ne8 {[%emt 0:02:14]} (30... g6 $11 {keeps the balance.}) 31. g5 {[%emt 0:01:23]} Qd6 {[%emt 0:01:28]} 32. Nc4 $11 {[%emt 0:22:21]} Qe7 {[%emt 0:00:19]} 33. Rg1 {[%emt 0:01:02]} Kb8 {[%emt 0:07:58]} 34. Ne3 {[%emt 0:00:25]} Ka7 {[%emt 0:03:05]} 35. g6 {[%emt 0:02:11]} Nf6 {[%emt 0:02:19]} 36. gxf7 {[%emt 0:01:19]} Qxf7 {[%emt 0:01:38]} 37. Rgd1 {[%emt 0:00:54]} Qe7 {[%emt 0:02:07]} 38. c4 {[%emt 0:01:00]} Rd4 {[%emt 0:03:20]} 39. Nd5 {[%emt 0:00:18]} Bxd5 {[%emt 0:00:07]} 40. cxd5 {[%emt 0:00:19]} b5 {[%emt 0:03:57]} 41. axb5 {[%emt 0:00:38]} a5 {[%emt 0:01:10]} 42. Bc4 {[%emt 0:02:00]} Bb6 {[%emt 0:00:07]} 43. Kb2 {[%emt 0:00:39]} Rh8 {[%emt 0:00:11]} 44. Rxd4 {[%emt 0:00:35]} cxd4 {[%emt 0:06:43]} 45. Nd3 {[%emt 0:00:24]} Rh4 {[%emt 0:00:00]} 46. Ra1 {[%emt 0:02:20]} Kb7 {[%emt 0:00:00]} 47. b4 {[%emt 0:00:19]} Nxe4 {[%emt 0:00:00]} 48. bxa5 {[%emt 0:00:29]} Nd6 {[%emt 0:00:00]} 49. Bb3 {[%emt 0:01:14]} Re4 {[%emt 0:00:12]} 50. Qc2 {[%emt 0:00:18]} Ba7 {[%emt 0:01:33]} 51. b6 {[%emt 0:00:27]} Re3 {[%emt 0:00:15]} 52. a6+ {[%emt 0:02:21]} Kb8 {[%emt 0:00:30]} 53. Nb4 {[%emt 0:00:29]} Nc4+ {[%emt 0:02:00]} 54. Qxc4 {[%emt 0:00:10]} Re2+ {[%emt 0:00:00]} 55. Qxe2 {[%emt 0:00:13]} 1-0

[Event "Elegant 1st Division League 2024"]
[Site "Dhaka"]
[Date "2024.07.14"]
[Round "4.8"]
[White "Shejal Sahil Sanjay"]
[Black "Hossain, Delwar"]
[Result "1/2-1/2"]
[Annotator "ChessBase"]
[ECO "B06"]
[WhiteElo "1750"]
[BlackElo "1959"]
[PlyCount "171"]
[EventDate "2024.07.10"]
[EventType "team-tourn"]
[EventCountry "BAN"]
[SourceTitle "playchess.com"]
[Source "ChessBase"]
[SourceQuality "1"]
[TimeControl "5400+30"]

1. e4 {[%emt 0:00:01]} g6 {[%emt 0:01:13]} 2. d4 {[%emt 0:00:12]} Bg7 {[%emt 0:00:06]} 3. Be3 {[%emt 0:00:32]} d6 {[%emt 0:00:08]} 4. Bd3 {[%emt 0:00:12]} Nd7 {[%emt 0:00:37]} 5. Ne2 {[%emt 0:00:10]} c5 {[%emt 0:00:36]} 6. c3 {[%emt 0:00:13]} a6 {[%emt 0:00:40]} 7. Nd2 {[%emt 0:00:21]} Ngf6 {[%emt 0:00:18]} 8. f4 {[%emt 0:01:05]} Qc7 {[%emt 0:02:18]} 9. h3 {[%emt 0:03:31]} e5 {[%emt 0:03:34]} 10. fxe5 {[%emt 0:00:02]} dxe5 {[%emt 0:00:14]} 11. d5 {[%emt 0:00:02]} b5 {[%emt 0:01:00]} 12. b3 {[%emt 0:01:38]} O-O {[%emt 0:00:50]} 13. c4 {[%emt 0:00:24]} Rb8 {[%emt 0:00:16]} 14. cxb5 {[%emt 0:02:25]} axb5 {[%emt 0:00:20]} 15. a4 {[%emt 0:00:01]} Ba6 {[%emt 0:00:41]} 16. Rc1 {[%emt 0:06:01]} Rfc8 {[%emt 0:00:52]} 17. b4 {[%emt 0:02:22]} Qd6 {[%emt 0:00:37]} 18. Nc3 {[%emt 0:18:06]} c4 {[%emt 0:04:50]} 19. axb5 {[%emt 0:00:23]} Bxb5 {[%emt 0:01:09]} 20. Nxb5 {[%emt 0:00:42]} Rxb5 {[%emt 0:00:41]} 21. Bxc4 {[%emt 0:06:01]} Rxb4 {[%emt 0:01:05]} 22. O-O {[%emt 0:00:13]} Nh5 {[%emt 0:06:09]} 23. Be2 {[%emt 0:04:27]} Rxc1 {[%emt 0:01:11]} 24. Qxc1 {[%emt 0:00:06]} Ng3 {[%emt 0:01:18]} 25. Re1 {[%emt 0:06:23]} Nxe4 {[%emt 0:01:12]} 26. Nxe4 {[%emt 0:04:48]} Rxe4 {[%emt 0:00:51]} 27. Bf3 {[%emt 0:07:37]} Rb4 {[%emt 0:01:38]} 28. Qc6 {[%emt 0:01:01]} Bf8 {[%emt 0:00:14]} 29. Rc1 {[%emt 0:01:42]} e4 {[%emt 0:02:23]} 30. Be2 {[%emt 0:10:20]} Qg3 {[%emt 0:04:48]} 31. Bf2 {[%emt 0:05:30]} Qa3 {[%emt 0:01:48]} 32. Rd1 {[%emt 0:03:04]} Ne5 {[%emt 0:01:20]} 33. Qa6 {[%emt 0:00:44]} Ra4 {[%emt 0:02:11]} 34. Qc8 {[%emt 0:01:10]} Nd3 {[%emt 0:02:31]} 35. Bxd3 {[%emt 0:09:59]} exd3 {[%emt 0:00:07]} 36. Qc1 {[%emt 0:00:13]} Qxc1 {[%emt 0:01:28]} 37. Rxc1 {[%emt 0:00:02]} Ra5 {[%emt 0:01:06]} 38. Be1 {[%emt 0:02:02]} Rxd5 {[%emt 0:00:41]} 39. Bd2 {[%emt 0:00:02]} Be7 {[%emt 0:04:37]} 40. Kf2 {[%emt 0:01:41]} Bg5 {[%emt 0:03:36]} 41. Bxg5 {[%emt 0:00:19]} Rxg5 {[%emt 0:00:18]} 42. Rc8+ {[%emt 0:00:02]} Kg7 {[%emt 0:00:43]} 43. Rd8 {[%emt 0:00:02]} h5 {[%emt 0:02:14]} 44. Rxd3 {[%emt 0:00:29]} h4 {[%emt 0:00:32]} 45. Rd4 {[%emt 0:00:28]} Rf5+ {[%emt 0:00:20]} 46. Ke3 {[%emt 0:00:57]} g5 {[%emt 0:00:26]} 47. Rd6 {[%emt 0:00:18]} Rf6 {[%emt 0:01:07]} 48. Rd5 {[%emt 0:00:14]} Kg6 {[%emt 0:00:28]} 49. Ra5 {[%emt 0:00:08]} Rf5 {[%emt 0:02:07]} 50. Ra6+ {[%emt 0:00:10]} f6 {[%emt 0:00:36]} 51. Ra4 {[%emt 0:00:07]} Rb5 {[%emt 0:01:12]} 52. Kf3 {[%emt 0:00:27]} Kf5 {[%emt 0:02:38]} 53. Ra3 {[%emt 0:00:51]} Ke6 {[%emt 0:00:41]} 54. Re3+ {[%emt 0:01:14]} Re5 {[%emt 0:00:40]} 55. Ra3 {[%emt 0:00:07]} f5 {[%emt 0:01:18]} 56. Ra6+ {[%emt 0:00:20]} Kf7 {[%emt 0:01:04]} 57. Rb6 {[%emt 0:00:40]} Re6 {[%emt 0:00:24]} 58. Rb7+ {[%emt 0:00:17]} Kg6 {[%emt 0:00:21]} 59. Rb8 {[%emt 0:00:09]} Re5 {[%emt 0:01:35]} 60. Rg8+ {[%emt 0:00:24]} Kf6 {[%emt 0:00:11]} 61. Rf8+ {[%emt 0:00:08]} Kg7 {[%emt 0:00:15]} 62. Ra8 {[%emt 0:00:02]} Re6 {[%emt 0:01:37]} 63. Ra7+ {[%emt 0:00:27]} Kg6 {[%emt 0:00:11]} 64. Ra8 {[%emt 0:00:06]} Rd6 {[%emt 0:01:13]} 65. Rg8+ {[%emt 0:00:10]} Kf6 {[%emt 0:01:25]} 66. Rf8+ {[%emt 0:00:01]} Ke5 {[%emt 0:00:42]} 67. Re8+ {[%emt 0:00:06]} Re6 {[%emt 0:00:48]} 68. Rg8 {[%emt 0:01:52]} Kf6 {[%emt 0:00:05]} 69. Rf8+ {[%emt 0:00:06]} Kg6 {[%emt 0:00:35]} 70. Rg8+ {[%emt 0:00:02]} Kh5 {[%emt 0:00:37]} 71. Rh8+ {[%emt 0:00:01]} Rh6 {[%emt 0:01:34]} 72. Rf8 {[%emt 0:00:04]} f4 {[%emt 0:00:56]} 73. Ra8 {[%emt 0:00:48]} Re6 {[%emt 0:00:05]} 74. Ra5 {[%emt 0:00:58]} Re3+ {[%emt 0:00:40]} 75. Kf2 {[%emt 0:00:02]} Rg3 {[%emt 0:00:45]} 76. Rb5 {[%emt 0:00:24]} Re3 {[%emt 0:00:40]} 77. Ra5 {[%emt 0:00:07]} Kg6 {[%emt 0:00:23]} 78. Ra6+ {[%emt 0:00:11]} Kf5 {[%emt 0:00:47]} 79. Ra5+ {[%emt 0:00:03]} Re5 {[%emt 0:01:15]} 80. Ra8 {[%emt 0:00:04]} Rd5 {[%emt 0:00:51]} 81. Rf8+ {[%emt 0:00:11]} Ke4 {[%emt 0:00:54]} 82. Re8+ {[%emt 0:01:03]} Kd3 {[%emt 0:00:47]} 83. Kf3 {[%emt 0:00:18]} Kd2 {[%emt 0:02:02]} 84. Kg4 {[%emt 0:00:57]} Kd3 {[%emt 0:00:59]} 85. Rg8 {[%emt 0:02:56]} Ke3 {[%emt 0:00:28]} 86. Rxg5 {[%emt 0:00:09]} 1/2-1/2

[Event "Elegant 1st Division League 2024"]
[Site "Dhaka"]
[Date "2024.07.14"]
[Round "4.11"]
[White "Salim Mohammed, Salim Al Amri"]
[Black "Zaeef Maheen, Chowdhury"]
[Result "1/2-1/2"]
[Annotator "ChessBase"]
[ECO "E61"]
[WhiteElo "1928"]
[BlackElo "1713"]
[PlyCount "98"]
[EventDate "2024.07.10"]
[EventType "team-tourn"]
[EventCountry "BAN"]
[SourceTitle "playchess.com"]
[Source "ChessBase"]
[SourceQuality "1"]
[TimeControl "5400+30"]

1. c4 {[%emt 0:20:29]} e5 {[%emt 0:01:39]} 2. Nc3 {[%emt 0:00:09]} Nf6 {[%emt 0:00:29]} 3. g3 {[%emt 0:00:17]} g6 {[%emt 0:01:01]} 4. Bg2 {[%emt 0:00:03]} d6 {[%emt 0:00:38]} 5. e3 {[%emt 0:01:56]} c6 {[%emt 0:00:52]} 6. Nge2 {[%emt 0:00:09]} Bg7 {[%emt 0:01:02]} 7. O-O {[%emt 0:00:15]} O-O {[%emt 0:00:25]} 8. d4 {[%emt 0:00:34]} Nbd7 {[%emt 0:00:29]} 9. a4 {[%emt 0:01:52]} a5 {[%emt 0:00:26]} 10. b3 {[%emt 0:01:46]} h5 {[%emt 0:02:58]} 11. h3 {[%emt 0:02:11]} Nh7 {[%emt 0:02:46]} 12. Ba3 {[%emt 0:00:41]} exd4 {[%emt 0:05:33]} 13. Nxd4 {[%emt 0:06:13]} Nc5 {[%emt 0:01:43]} 14. Rb1 {[%emt 0:04:06]} Qf6 {[%emt 0:02:53]} 15. Nce2 {[%emt 0:06:31]} Ng5 {[%emt 0:02:57]} 16. Nf4 {[%emt 0:05:59]} Nge4 {[%emt 0:05:26]} 17. Qc2 {[%emt 0:03:52]} Re8 {[%emt 0:02:17]} 18. Rbd1 {[%emt 0:04:43]} h4 {[%emt 0:07:07]} 19. g4 {[%emt 0:01:34]} Qg5 {[%emt 0:05:37]} 20. Bb2 {[%emt 0:08:05]} Bxd4 {[%emt 0:03:03]} 21. Bxd4 {[%emt 0:06:15]} f5 {[%emt 0:02:35]} 22. Bxc5 {[%emt 0:01:56]} dxc5 {[%emt 0:04:13]} 23. Bxe4 {[%emt 0:08:22]} Rxe4 {[%emt 0:01:22]} 24. Rd6 {[%emt 0:01:23]} Rxf4 {[%emt 0:01:34]} 25. exf4 {[%emt 0:00:20]} Qxf4 {[%emt 0:00:33]} 26. Qd2 {[%emt 0:00:27]} Qxd2 {[%emt 0:01:45]} 27. Rxd2 {[%emt 0:00:02]} Be6 {[%emt 0:00:25]} 28. g5 {[%emt 0:01:10]} Kf7 {[%emt 0:01:04]} 29. Re1 {[%emt 0:01:50]} Re8 {[%emt 0:01:17]} 30. f4 {[%emt 0:02:06]} Bc8 {[%emt 0:02:42]} 31. Rxe8 {[%emt 0:00:58]} Kxe8 {[%emt 0:00:14]} 32. Kf2 {[%emt 0:01:14]} Ke7 {[%emt 0:39:25]} 33. Ke3 {[%emt 0:00:27]} Be6 {[%emt 0:00:00]} 34. Kd3 {[%emt 0:01:37]} Kd6 {[%emt 0:00:00]} 35. Kc3+ {[%emt 0:00:11]} Ke7 {[%emt 0:00:00]} 36. Rd3 {[%emt 0:01:32]} b6 {[%emt 0:00:00]} 37. Re3 {[%emt 0:02:05]} Kd6 {[%emt 0:00:00]} 38. Re5 {[%emt 0:00:45]} Kd7 {[%emt 0:00:00]} 39. Re3 {[%emt 0:00:37]} Kd6 {[%emt 0:00:00]} 40. Rd3+ {[%emt 0:01:06]} Ke7 {[%emt 0:00:00]} 41. Kc2 {[%emt 0:00:51]} Bf7 {[%emt 0:00:00]} 42. Kb2 {[%emt 0:00:47]} Be6 {[%emt 0:00:00]} 43. Kc3 {[%emt 0:01:22]} Bf7 {[%emt 0:00:00]} 44. Kd2 {[%emt 0:00:06]} Be6 {[%emt 0:00:00]} 45. Ke3 {[%emt 0:00:14]} Bf7 {[%emt 0:00:00]} 46. Rd1 {[%emt 0:01:23]} Be6 {[%emt 0:00:00]} 47. Kf2 {[%emt 0:00:43]} Bf7 {[%emt 0:00:00]} 48. Kf3 {[%emt 0:01:00]} Be6 {[%emt 0:00:00]} 49. Rd2 {[%emt 0:00:48]} Bf7 {[%emt 0:08:30]} 1/2-1/2